bitfinex-derivatives/quotes_SOLF0:USTF0_20250603
["timestamp","ask_amount","ask_price","bid_price","bid_amount"]
[1748987993834,0.04265364,154.9,154.87,0.04773317]
[1748987994439,6.4522,154.88,154.87,0.04773317]
[1748987994833,0.04265364,154.9,154.83,6.4541]
[1748987995331,0.04265364,154.9,154.81,605.64]
[1748987995527,17.42710299,154.87,154.75,48.66]
[1748987995733,17.42710299,154.87,154.79,0.04034443]
[1748987995734,0.04338745,154.83,154.79,0.04034443]
[1748987996042,6.4555,154.8,154.79,0.04034443]
[1748987999351,6.4553,154.81,154.79,0.04034443]
[1748987999849,4.3019,154.82,154.79,0.04034443]
[1748988000046,0.04338745,154.83,154.79,17.46744742]
[1748988000241,0.04338745,154.83,154.79,0.04034443]
[1748988000446,0.04338745,154.83,154.82,6.4547]
[1748988000648,0.04338745,154.83,154.79,0.04034443]
[1748988000954,17.42710299,154.81,154.68,48.68]
[1748988001141,17.42710299,154.81,154.64,62.0]
[1748988001142,17.42710299,154.72,154.58,11.74294919]
[1748988001347,17.42710299,154.8,154.62,6.4627]
[1748988001348,17.42710299,154.68,154.62,6.4627]
[1748988001546,50.9268,154.71,154.59,48.68]
[1748988001751,17.42710299,154.66,154.59,48.68]
[1748988002050,17.42710299,154.66,154.55,48.68]
[1748988002051,17.42710299,154.62,154.55,48.68]
[1748988002357,48.68,154.66,154.51,48.68]
[1748988002358,17.42710299,154.58,154.51,48.68]
[1748988002552,0.0481064,154.56,154.5,48.68]
[1748988002748,17.47520939,154.56,154.48,66.10710299]
[1748988002950,0.04947827,154.54,154.48,66.10710299]
[1748988003156,0.04947827,154.54,154.51,29.80300044]
[1748988003354,0.04947827,154.54,154.48,48.68]
[1748988003558,0.04947827,154.54,154.49,29.80627568]
[1748988003948,0.04947827,154.54,154.48,48.68]
[1748988004452,0.04947827,154.54,154.45,557.62]
[1748988004759,0.04947827,154.54,154.38,48.72]
[1748988005052,48.72,154.56,154.38,48.72]
[1748988005053,0.04432038,154.48,154.39,29.84873235]
[1748988005448,0.04432038,154.48,154.38,78.56873235]
[1748988005652,0.04724508,154.45,154.38,48.72]
[1748988006359,6.51774508,154.45,154.38,48.72]
[1748988006554,0.04724508,154.45,154.42,29.85341829]
[1748988006853,78.59341829,154.58,154.43,48.74]
[1748988007059,78.59341829,154.58,154.46,29.85341829]
[1748988007465,48.74,154.58,154.49,29.85341829]
[1748988007655,48.74,154.63,154.52,29.85341829]
[1748988007949,0.04841679,154.59,154.58,29.85341829]
[1748988008152,0.04777669,154.6,154.58,29.85341829]
[1748988008351,0.04777669,154.6,154.59,6.4642]
[1748988008751,2.1332,154.7,154.58,29.85341829]
[1748988008951,2.248,154.75,154.66,29.85341829]
[1748988009153,78.59341829,154.77,154.66,29.85341829]
[1748988009359,48.74,154.77,154.69,29.85341829]
[1748988009854,0.04077978,154.75,154.71,0.04172302]
[1748988010854,6.49837978,154.75,154.71,0.04172302]
[1748988011254,0.04077978,154.75,154.71,0.04172302]
[1748988011455,0.04077978,154.75,154.71,29.89514131]
[1748988011850,0.04077978,154.75,154.74,36.31141829]
[1748988012059,50.844,154.85,154.74,78.59341829]
[1748988012572,6.4543,154.83,154.74,78.59341829]
[1748988013062,0.04324712,154.8,154.77,0.04877743]
[1748988013461,0.04324712,154.8,154.7,48.74]
[1748988013760,29.85341829,154.79,154.67,29.85341829]
[1748988014348,6.458,154.75,154.67,29.85341829]
[1748988014567,0.04391735,154.73,154.69,0.04401582]
[1748988016556,6.50241735,154.73,154.69,0.04401582]
[1748988016756,0.04391735,154.73,154.69,0.04401582]
[1748988017155,6.50241735,154.73,154.69,0.04401582]
[1748988017354,0.04391735,154.73,154.69,0.04401582]
[1748988017563,48.74,154.8,154.7,29.85341829]
[1748988017758,6.4568,154.77,154.73,29.85341829]
[1748988017963,48.74,154.8,154.73,29.85341829]
[1748988018262,6.4571,154.77,154.73,29.85341829]
[1748988018462,48.74,154.8,154.73,29.85341829]
[1748988018665,0.0491307,154.77,154.73,29.8960609]
[1748988018859,6.4572,154.76,154.73,0.04264261]
[1748988019256,0.0491307,154.77,154.73,0.04264261]
[1748988019453,6.5062307,154.77,154.73,0.04264261]
[1748988021269,6.5062307,154.77,154.73,6.50104261]
[1748988021464,6.5062307,154.77,154.73,0.04264261]
[1748988022367,6.5062307,154.77,154.74,29.85341829]
[1748988022368,0.0491307,154.77,154.74,29.85341829]
[1748988022665,47.82,154.84,154.74,29.85341829]
[1748988022863,47.82,154.84,154.77,29.85341829]
[1748988023063,47.82,154.84,154.72,29.85341829]
[1748988023277,29.85341829,154.83,154.72,29.85341829]
[1748988023464,6.4556,154.8,154.72,29.85341829]
[1748988023667,0.04285714,154.78,154.74,0.04815614]
[1748988024062,0.04285714,154.78,154.75,6.4575]
[1748988024368,0.04285714,154.78,154.74,0.04815614]
[1748988024671,0.04285714,154.78,154.75,29.85341829]
[1748988024857,0.04285714,154.78,154.76,6.4572]
[1748988025262,0.04285714,154.78,154.75,29.85341829]
[1748988025667,0.04285714,154.78,154.77,6.4568]
[1748988025967,0.04285714,154.78,154.74,0.04815614]
[1748988026561,6.4576,154.75,154.74,0.04815614]
[1748988027272,0.04285714,154.78,154.67,6.4606]
[1748988027569,32.09811829,154.77,154.65,47.82]
[1748988027771,29.85341829,154.74,154.65,54.2816]
[1748988027970,6.4601,154.69,154.65,54.2816]
[1748988028172,47.82,154.74,154.67,29.85341829]
[1748988028469,0.04107414,154.72,154.69,0.04296382]
[1748988029474,0.04107414,154.72,154.71,6.4593]
[1748988029873,0.04107414,154.72,154.69,0.04296382]
[1748988030064,0.04107414,154.72,154.7,6.4596]
[1748988030369,0.04107414,154.72,154.69,0.04296382]
[1748988030569,0.04107414,154.72,154.71,6.4593]
[1748988033172,0.04107414,154.72,154.7,6.4596]
[1748988033675,0.04107414,154.72,154.69,0.04296382]
[1748988034077,6.4597,154.7,154.69,0.04296382]
[1748988034277,0.04107414,154.72,154.65,47.82]
[1748988034573,6.4614,154.66,154.65,47.82]
[1748988034877,2.0479,154.71,154.65,47.82]
[1748988035474,2.0479,154.71,154.64,558.34]
[1748988035475,29.89900581,154.7,154.66,0.04360808]
[1748988035677,6.4609,154.67,154.66,0.04244559]
[1748988036978,0.04875756,154.7,154.66,0.04244559]
[1748988037975,6.50855756,154.7,154.66,6.50344559]
[1748988038979,6.4602,154.69,154.66,6.50344559]
[1748988039480,0.04875756,154.7,154.67,6.4609]
[1748988039982,0.04875756,154.7,154.66,0.04244559]
[1748988040279,0.04875756,154.7,154.66,29.89586388]
[1748988040579,0.04875756,154.7,154.67,6.4606]
[1748988040780,0.04875756,154.7,154.66,29.89586388]
[1748988041876,0.04875756,154.7,154.69,36.31351829]
[1748988043871,0.04875756,154.7,154.69,29.85341829]
[1748988044075,0.04875756,154.7,154.69,47.84]
[1748988044880,6.50875756,154.7,154.66,6.50354559]
[1748988045081,0.04875756,154.7,154.66,6.50354559]
[1748988045678,0.04875756,154.7,154.66,0.04244559]
[1748988046084,6.4609,154.67,154.66,0.04244559]
[1748988046284,0.04875756,154.7,154.66,0.04244559]
[1748988046882,29.90217585,154.7,154.59,29.85341829]
[1748988047081,29.85341829,154.67,154.52,111.17481435]
[1748988047285,6.4638,154.6,154.57,6.4647]
[1748988047583,29.85341829,154.68,154.56,29.85341829]
[1748988047780,6.4642,154.6,154.56,6.4653]
[1748988047981,0.04952492,154.6,154.56,6.50774392]
[1748988048378,0.04952492,154.6,154.56,0.04244392]
[1748988048579,6.465,154.58,154.56,0.04244392]
[1748988049190,0.04952492,154.6,154.56,0.04244392]
[1748988050285,6.4651,154.57,154.56,0.04244392]
[1748988052886,2.2532,154.59,154.56,0.04244392]
[1748988053084,0.04952492,154.6,154.56,0.04244392]
[1748988053283,0.04952492,154.6,154.59,6.4642]
[1748988053488,0.04952492,154.6,154.59,52.7042]
[1748988053787,6.2738,154.65,154.59,52.7042]
[1748988053788,12.7356,154.65,154.59,52.7042]
[1748988054103,4.2248,154.65,154.61,29.85341829]
[1748988054291,46.24,154.7,154.61,29.85341829]
[1748988054292,6.4612,154.67,154.61,29.85341829]
[1748988054483,2.049,154.69,154.61,29.85341829]
[1748988054986,0.04329491,154.67,154.63,0.04221349]
[1748988055295,0.04329491,154.67,154.64,46.24]
[1748988055491,6.50449491,154.67,154.64,46.24]
[1748988055795,0.04329491,154.67,154.64,76.09341829]
[1748988056889,0.04329491,154.67,154.65,6.4615]
[1748988057589,0.04329491,154.67,154.64,76.09341829]
[1748988057993,6.4616,154.66,154.64,76.09341829]
[1748988058189,0.04329491,154.67,154.64,46.24]
[1748988058485,0.04329491,154.67,154.63,0.04221349]
[1748988059092,6.4618,154.65,154.63,0.04221349]
[1748988059391,0.04329491,154.67,154.63,0.04221349]
[1748988059593,6.4622,154.64,154.63,0.04221349]
[1748988061192,6.4621,154.65,154.63,0.04221349]
[1748988061391,0.04329491,154.67,154.63,0.04221349]
[1748988064195,29.85341829,154.54,154.46,558.42]
[1748988064493,29.85341829,154.51,154.41,46.24]
[1748988064703,0.04281588,154.48,154.41,46.24]
[1748988065198,0.04281588,154.48,154.41,76.09341829]
[1748988065688,0.04281588,154.48,154.41,46.24]
[1748988065889,0.04281588,154.48,154.41,76.09341829]
[1748988067085,0.04281588,154.48,154.47,6.4693]
[1748988067292,0.04281588,154.48,154.41,46.24]
[1748988067486,0.04281588,154.48,154.45,6.4701]
[1748988067902,0.04281588,154.48,154.41,46.24]
[1748988068100,0.04281588,154.48,154.45,6.4701]
[1748988068396,0.04281588,154.48,154.44,29.83127329]
[1748988068592,0.04281588,154.48,154.47,6.4693]
[1748988071501,0.04281588,154.48,154.46,52.7296]
[1748988071795,1.588e-05,154.48,154.47,29.83127329]
[1748988072198,1.588e-05,154.48,154.47,36.30057329]
[1748988072398,76.09127329,154.63,154.47,36.31127329]
[1748988072602,6.4635,154.61,154.54,29.83127329]
[1748988072798,2.2701,154.62,154.55,46.26]
[1748988073401,0.04247358,154.6,154.57,0.04661105]
[1748988073801,6.4647,154.58,154.57,0.04661105]
[1748988074194,0.04247358,154.6,154.51,29.83127329]
[1748988074395,2.2701,154.62,154.51,36.29887329]
[1748988074396,6.4654,154.57,154.51,36.29887329]
[1748988074594,2.2701,154.62,154.51,36.29887329]
[1748988075102,0.04131913,154.58,154.51,36.29887329]
[1748988075296,0.04131913,154.58,154.5,46.26]
[1748988075695,0.04131913,154.58,154.48,558.78]
[1748988075696,145.84,154.57,154.48,558.78]
[1748988075895,6.4675,154.52,154.48,558.78]
[1748988076197,0.04932681,154.54,154.48,558.78]
[1748988076403,6.4684,154.49,154.48,558.78]
[1748988078505,6.4684,154.49,154.46,76.09127329]
[1748988079607,6.4684,154.49,154.46,46.26]
[1748988079795,6.51598027,154.5,154.46,46.26]
[1748988079997,0.04788027,154.5,154.46,46.26]
[1748988080300,0.04788027,154.5,154.48,29.83127329]
[1748988080700,47.2689,154.6,154.48,29.83127329]
[1748988080896,47.2689,154.6,154.52,29.83127329]
[1748988081103,2.2489,154.6,154.52,74.85127329]
[1748988081296,2.2489,154.6,154.55,29.83127329]
[1748988081698,0.04683149,154.59,154.56,0.04698728]
[1748988081903,6.51153149,154.59,154.56,0.04698728]
[1748988082204,0.04683149,154.59,154.56,0.04698728]
[1748988082609,0.04683149,154.59,154.58,36.29597329]
[1748988082806,196.7642,154.68,154.58,29.83127329]
[1748988083006,6.4629,154.63,154.59,6.4642]
[1748988083608,51.3842,154.68,154.61,6.4632]
[1748988083809,0.04311278,154.63,154.61,29.83127329]
[1748988084208,0.04311278,154.63,154.62,45.02]
[1748988086319,0.04311278,154.63,154.62,51.483]
[1748988087510,0.04311278,154.63,154.62,45.02]
[1748988088015,0.04311278,154.63,154.62,51.483]
[1748988088217,0.04311278,154.63,154.62,45.02]
[1748988089514,6.50571278,154.63,154.62,45.02]
[1748988089712,0.04311278,154.63,154.6,0.04266983]
[1748988090217,6.463,154.62,154.6,0.04266983]
[1748988090413,0.04311278,154.63,154.6,0.04266983]
[1748988090617,6.4634,154.61,154.6,0.04266983]
[1748988091621,6.4651,154.57,154.55,45.0]
[1748988091814,6.4651,154.57,154.53,29.83127329]
[1748988091815,29.83127329,154.61,154.51,45.0]
[1748988092617,6.4659,154.55,154.54,0.0469775]
[1748988093115,0.04085707,154.58,154.54,0.0469775]
[1748988093116,0.04085707,154.58,154.54,29.83586485]
[1748988093319,0.04085707,154.58,154.57,29.78888735]
[1748988093710,0.04085707,154.58,154.57,36.25398735]
[1748988093914,2.234,154.66,154.57,36.25398735]
[1748988093915,2.234,154.66,154.57,29.78888735]
[1748988094109,2.0557,154.67,154.62,29.78888735]
[1748988094521,2.234,154.71,154.62,29.78888735]
[1748988094721,4.2897,154.71,154.65,29.78888735]
[1748988094925,6.50379942,154.7,154.66,0.04260203]
[1748988095110,0.04409942,154.7,154.66,0.04260203]
[1748988095416,0.04409942,154.7,154.68,29.78888735]
[1748988098130,47.0557,154.8,154.68,29.78888735]
[1748988098329,49.1103,154.8,154.73,29.78888735]
[1748988098530,6.4571,154.77,154.73,29.78888735]
[1748988098718,4.1103,154.8,154.73,29.78888735]
[1748988098920,6.456,154.79,154.76,29.78888735]
[1748988099227,0.04203503,154.79,154.76,29.83811136]
[1748988100020,0.04203503,154.79,154.76,0.04922401]
[1748988100217,0.04203503,154.79,154.72,45.0]
[1748988101027,0.04203503,154.79,154.72,74.78888735]
[1748988101331,6.4579,154.75,154.74,0.0460059]
[1748988101726,0.04203503,154.79,154.7,558.5]
[1748988101929,29.78888735,154.79,154.69,29.78888735]
[1748988102132,29.78888735,154.77,154.66,29.78888735]
[1748988102626,6.4602,154.69,154.66,29.78888735]
[1748988102819,6.50750191,154.69,154.66,29.83736864]
[1748988103027,0.04730191,154.69,154.66,29.83736864]
[1748988103229,0.04730191,154.69,154.68,29.78888735]
[1748988103830,0.04730191,154.69,154.68,36.24938735]
[1748988105024,0.04730191,154.69,154.68,29.78888735]
[1748988106337,0.04730191,154.69,154.66,0.04848129]
[1748988106535,6.4609,154.67,154.66,0.04848129]
[1748988107731,0.04730191,154.69,154.66,0.04848129]
[1748988107932,0.04730191,154.69,154.68,36.24938735]
[1748988108241,6.4576,154.75,154.68,29.78888735]
[1748988108449,6.4576,154.75,154.72,29.78888735]
[1748988109134,6.458,154.74,154.72,29.83674742]
[1748988109332,0.04938809,154.75,154.72,0.04786007]
[1748988109743,6.4584,154.73,154.72,0.04786007]
[1748988110333,6.4596,154.71,154.67,29.78888735]
[1748988110841,43.86,154.77,154.67,29.78888735]
[1748988111545,0.04634819,154.74,154.7,0.04855951]
[1748988112439,6.4592,154.71,154.7,0.04855951]
[1748988112939,0.04634819,154.74,154.65,43.86]
[1748988113139,29.78888735,154.76,154.65,43.86]
[1748988113543,6.4612,154.67,154.65,43.86]
[1748988113748,43.86,154.77,154.65,50.3217]
[1748988114045,6.4602,154.69,154.65,43.86]
[1748988114244,6.50827745,154.69,154.65,43.86]
[1748988114646,6.50827745,154.69,154.65,50.3214]
[1748988114943,0.04807745,154.69,154.65,43.86]
[1748988115244,0.04807745,154.69,154.66,29.78888735]
[1748988115758,6.50847745,154.69,154.66,29.78888735]
[1748988116345,6.50847745,154.69,154.66,36.25018735]
[1748988116549,6.4606,154.68,154.66,29.78888735]
[1748988117145,6.50827745,154.69,154.66,29.78888735]
[1748988117347,43.86,154.82,154.66,29.78888735]
[1748988117548,6.4571,154.77,154.7,29.78888735]
[1748988117743,4.1103,154.8,154.73,29.78888735]
[1748988117944,4.1103,154.8,154.71,43.86]
[1748988118548,0.04210614,154.77,154.74,0.04285716]
[1748988118852,43.86,154.76,154.67,43.86]
[1748988119049,29.78888735,154.75,154.67,43.86]
[1748988119344,29.78888735,154.75,154.63,73.64888735]
[1748988119547,73.62033486,154.76,154.64,29.76033486]
[1748988119846,0.0475362,154.72,154.64,29.76033486]
[1748988120042,0.0475362,154.72,154.67,29.76033486]
[1748988120242,0.0475362,154.72,154.69,6.4598]
[1748988120442,0.0475362,154.72,154.67,29.76033486]
[1748988120953,29.76033486,154.7,154.59,43.86]
[1748988121249,0.04399106,154.66,154.58,29.76033486]
[1748988121635,6.4628,154.63,154.6,6.4638]
[1748988122649,0.04399106,154.66,154.59,6.4641]
[1748988122852,0.04588801,154.64,154.58,29.76033486]
[1748988123749,0.04588801,154.64,154.61,29.76033486]
[1748988124152,0.04588801,154.64,154.57,43.86]
[1748988124340,0.04588801,154.64,154.54,558.2]
[1748988124539,0.04865697,154.61,154.53,73.62033486]
[1748988124749,143.92,154.6,154.49,29.76033486]
[1748988124942,0.04525379,154.56,154.49,29.76033486]
[1748988125358,0.04525379,154.56,154.55,29.76033486]
[1748988126255,0.04525379,154.56,154.52,29.76033486]
[1748988126551,0.04525379,154.56,154.5,43.86]
[1748988126952,0.04525379,154.56,154.51,29.76033486]
[1748988127551,0.04525379,154.56,154.5,43.86]
[1748988127552,0.04525379,154.56,154.54,29.76033486]
[1748988127759,0.04525379,154.56,154.49,43.88]
[1748988127957,0.04366499,154.54,154.49,73.64033486]
[1748988128454,0.04366499,154.54,154.49,43.88]
[1748988128760,0.04366499,154.54,154.53,29.76033486]
[1748988128946,6.499e-05,154.54,154.53,29.76033486]
[1748988129348,4.2269,154.65,154.53,29.76033486]
[1748988129551,4.2269,154.65,154.49,43.88]
[1748988129552,4.2269,154.65,154.58,29.76033486]
[1748988129856,4.2269,154.65,154.56,43.88]
[1748988130056,29.76033486,154.64,154.51,29.76033486]
[1748988130250,4.2269,154.65,154.54,29.76033486]
[1748988130559,0.04426677,154.61,154.58,0.04179643]
[1748988131561,6.4642,154.59,154.58,0.04179643]
[1748988133356,6.4642,154.59,154.58,9.643e-05]
[1748988133657,43.92426677,154.61,154.53,29.76033486]
[1748988133861,43.88,154.61,154.53,29.76033486]
[1748988134655,43.88,154.61,154.57,6.4649]
[1748988134656,0.04134973,154.59,154.57,6.4649]
[1748988134853,0.04134973,154.59,154.56,29.76033486]
[1748988135059,0.04134973,154.59,154.53,29.76033486]
[1748988135260,0.04134973,154.59,154.5,80.10823486]
[1748988135458,0.04134973,154.59,154.5,73.64033486]
[1748988135765,6.4662,154.55,154.51,6.4673]
[1748988136060,6.51153665,154.55,154.51,6.4673]
[1748988136262,6.51153665,154.55,154.5,73.64033486]
[1748988136263,0.04533665,154.55,154.5,80.10823486]
[1748988136449,0.04533665,154.55,154.5,73.64033486]
[1748988136758,0.04533665,154.55,154.46,588.06033486]
[1748988137056,0.04533665,154.55,154.49,29.76033486]
[1748988137256,6.4679,154.51,154.49,29.76033486]
[1748988137455,0.04597669,154.52,154.49,29.76033486]
[1748988137651,0.04597669,154.52,154.46,588.06033486]
[1748988138352,0.04597669,154.52,154.49,29.76033486]
[1748988138556,0.04597669,154.52,154.5,43.86]
[1748988138953,0.04597669,154.52,154.42,44.4469]
[1748988139152,6.51658064,154.49,154.43,29.76033486]
[1748988139356,0.04788064,154.49,154.46,29.76033486]
[1748988139667,2.1965,154.56,154.47,43.86]
[1748988139859,2.1965,154.56,154.49,29.76033486]
[1748988140064,45.9472,154.59,154.49,29.76033486]
[1748988140254,45.9472,154.59,154.47,43.86]
[1748988140255,45.9472,154.59,154.52,29.76033486]
[1748988140665,6.4674,154.52,154.49,6.4682]
[1748988140964,0.0475338,154.52,154.49,0.04247438]
[1748988141160,0.0475338,154.52,154.49,17.55672108]
[1748988141363,0.0475338,154.52,154.51,17.5142467]
[1748988141563,45.9472,154.59,154.49,0.04247438]
[1748988141752,45.9472,154.59,154.52,17.5142467]
[1748988141957,6.4657,154.56,154.52,17.5142467]
[1748988142273,45.9472,154.59,154.52,17.5142467]
[1748988142461,0.04826673,154.57,154.54,17.55531057]
[1748988142663,0.04826673,154.57,154.54,0.04106387]
[1748988142864,6.4659,154.55,154.54,0.04106387]
[1748988143163,0.04826673,154.57,154.54,0.04106387]
[1748988144370,6.4657,154.56,154.54,0.04106387]
[1748988144563,0.04826673,154.57,154.54,0.04106387]
[1748988146174,6.4657,154.56,154.54,0.04106387]
[1748988146369,0.04826673,154.57,154.54,0.04106387]
[1748988146876,6.51366673,154.57,154.54,6.50706387]
[1748988147077,0.04826673,154.57,154.54,17.55531057]
[1748988148886,0.04826673,154.57,154.54,0.04106387]
[1748988149277,6.4659,154.55,154.54,0.04106387]
[1748988152485,6.468,154.5,154.49,43.86]
[1748988152684,2.1482,154.56,154.47,558.7]
[1748988152685,17.5142467,154.53,154.47,558.7]
[1748988152886,17.5142467,154.53,154.46,6.4694]
[1748988153083,6.4683,154.5,154.46,6.4694]
[1748988153290,43.86,154.55,154.49,6.4681]
[1748988153480,43.86,154.55,154.48,17.5142467]
[1748988153481,0.04885662,154.54,154.5,0.04229036]
[1748988155201,6.4676,154.51,154.5,0.04229036]
[1748988155691,17.5142467,154.52,154.39,559.84655995]
[1748988155902,17.5142467,154.49,154.41,43.86]
[1748988156388,43.86,154.54,154.42,17.5142467]
[1748988156693,0.04675763,154.5,154.42,17.5142467]
[1748988156891,0.04675763,154.5,154.44,6.4704]
[1748988157489,0.04675763,154.5,154.41,43.86]
[1748988157689,17.5142467,154.49,154.41,43.86]
[1748988157891,0.04792632,154.47,154.46,6.4697]
[1748988158289,17.5142467,154.6,154.46,67.8742467]
[1748988158589,17.5142467,154.58,154.46,43.88]
[1748988158784,17.5142467,154.58,154.48,17.5142467]
[1748988158984,6.4662,154.55,154.48,17.5142467]
[1748988159295,0.04567591,154.53,154.5,17.5622547]
[1748988159485,0.04567591,154.53,154.5,24.0300547]
[1748988159683,0.04567591,154.53,154.5,17.5622547]
[1748988160291,0.04567591,154.53,154.5,0.048008]
[1748988161395,0.04567591,154.53,154.51,17.5142467]
[1748988162293,0.04567591,154.53,154.5,0.048008]
[1748988162487,6.4676,154.51,154.5,0.048008]
[1748988165593,6.4676,154.51,154.5,8e-06]
[1748988165791,61.43992261,154.53,154.42,61.3942467]
[1748988165792,2.1269,154.52,154.42,61.3942467]
[1748988165994,2.1269,154.52,154.44,6.4703]
[1748988166187,2.1269,154.52,154.44,23.9845467]
[1748988166486,2.1269,154.52,154.42,43.88]
[1748988166694,0.04686358,154.49,154.43,17.5142467]
[1748988166991,6.4693,154.47,154.43,17.5142467]
[1748988167185,6.4693,154.47,154.44,6.4702]
[1748988167390,0.04686358,154.49,154.45,17.5142467]
[1748988167585,0.04686358,154.49,154.42,43.88]
[1748988167586,0.04686358,154.49,154.46,17.51995356]
[1748988167790,0.04686358,154.49,154.45,6.4699]
[1748988167996,6.4689,154.48,154.45,6.4699]
[1748988169989,0.04686358,154.49,154.43,17.51995356]
[1748988170191,0.04686358,154.49,154.42,43.88]
[1748988170192,0.04686358,154.49,154.42,61.39995356]
[1748988170592,0.04686358,154.49,154.43,6.4707]
[1748988170792,0.04686358,154.49,154.42,61.39995356]
[1748988170993,0.04686358,154.49,154.44,17.51995356]
[1748988171287,0.04686358,154.49,154.47,6.469]
[1748988171696,0.04686358,154.49,154.42,43.88]
[1748988172099,0.04686358,154.49,154.43,17.51995356]
[1748988172799,0.04686358,154.49,154.42,43.88]
[1748988172800,0.04686358,154.49,154.47,17.51995356]
[1748988172996,0.04686358,154.49,154.48,6.4688]
[1748988174894,0.04686358,154.49,154.47,6.4691]
[1748988175193,0.04686358,154.49,154.42,51.83522663]
[1748988175194,0.04686358,154.49,154.45,17.51995356]
[1748988175589,0.04686358,154.49,154.48,6.4688]
[1748988176191,2.1681,154.55,154.51,6.4674]
[1748988176995,6.4667,154.54,154.51,6.4674]
[1748988177187,6.4667,154.54,154.51,6.51409813]
[1748988177796,0.04570906,154.55,154.51,17.56665169]
[1748988178008,0.04570906,154.55,154.53,17.51995356]
[1748988178200,0.04570906,154.55,154.51,17.56665169]
[1748988178799,6.4666,154.54,154.51,6.51409813]
[1748988179002,0.04570906,154.55,154.51,0.04669813]
[1748988179202,0.04570906,154.55,154.52,17.51995356]
[1748988179498,0.04570906,154.55,154.54,23.98625356]
[1748988179701,2.0613,154.61,154.57,17.51995356]
[1748988180100,2.088,154.64,154.59,17.51995356]
[1748988180303,6.4616,154.66,154.63,6.4625]
[1748988180506,2.1054,154.68,154.62,17.51995356]
[1748988180699,0.04113949,154.67,154.63,0.04298564]
[1748988181607,6.4621,154.65,154.63,0.04298564]
[1748988181903,0.04113949,154.67,154.63,0.04298564]
[1748988182503,6.462,154.65,154.63,0.04298564]
[1748988183009,17.51995356,154.66,154.57,43.88]
[1748988183204,2.0468,154.64,154.57,43.88]
[1748988183603,2.0468,154.64,154.57,55.16993932]
[1748988183810,6.4637,154.61,154.57,61.63473932]
[1748988184110,6.50535979,154.61,154.57,61.68423325]
[1748988185204,0.04165979,154.61,154.57,55.21943325]
[1748988185408,0.04165979,154.61,154.59,11.28993932]
[1748988185710,0.04165979,154.61,154.6,6.4638]
[1748988186310,0.04165979,154.61,154.57,55.21943325]
[1748988186516,0.04165979,154.61,154.57,0.04949393]
[1748988187303,6.4646,154.59,154.57,0.04949393]
[1748988187607,0.04165979,154.61,154.57,0.04949393]
[1748988187803,6.4645,154.59,154.57,0.04949393]
[1748988187999,2.163,154.6,154.57,0.04949393]
[1748988188414,6.4647,154.58,154.57,0.04949393]
[1748988188606,11.28993932,154.59,154.53,43.86]
[1748988188913,6.4664,154.54,154.5,17.75783932]
[1748988189412,6.4653,154.57,154.53,11.28993932]
[1748988189605,0.04919157,154.57,154.55,11.28993932]
[1748988190003,0.04919157,154.57,154.55,17.75553932]
[1748988190313,0.04919157,154.57,154.55,11.28993932]
[1748988190812,0.04919157,154.57,154.56,6.4655]
[1748988191998,13.46083932,154.66,154.59,6.4639]
[1748988192199,6.4625,154.64,154.58,11.28993932]
[1748988192411,2.1709,154.66,154.58,11.28993932]
[1748988192610,2.1709,154.66,154.59,6.4639]
[1748988193107,0.04840112,154.64,154.61,0.04176763]
[1748988194107,0.04840112,154.64,154.62,11.28993932]
[1748988194311,0.04840112,154.64,154.63,6.4626]
[1748988194808,43.86,154.71,154.67,6.4608]
[1748988195107,43.86,154.71,154.62,11.28993932]
[1748988195108,6.3248,154.72,154.66,11.28993932]
[1748988195305,6.4598,154.7,154.66,11.28993932]
[1748988195511,6.3248,154.72,154.67,6.4608]
[1748988195706,6.3248,154.72,154.66,11.28993932]
[1748988195907,0.04917691,154.71,154.67,6.50336557]
[1748988196103,0.04917691,154.71,154.68,11.28993932]
[1748988196503,0.04917691,154.71,154.7,11.28993932]
[1748988196920,2.0781,154.76,154.7,55.12993932]
[1748988197115,48.2653,154.8,154.74,17.74763932]
[1748988197310,4.3848,154.8,154.75,43.8]
[1748988197508,4.3848,154.8,154.76,11.28993932]
[1748988197912,4.43123562,154.8,154.76,11.33132421]
[1748988199114,6.4566,154.78,154.76,11.33132421]
[1748988200322,4.43123562,154.8,154.76,11.33132421]
[1748988200523,0.04643562,154.8,154.76,11.33132421]
[1748988200820,0.04643562,154.8,154.78,11.28993932]
[1748988201516,0.04643562,154.8,154.77,11.28993932]